bitfinex/quotes_ETHUSD_20220119
["timestamp","ask_amount","ask_price","bid_price","bid_amount"]
[1642601054424,0.8018122,3119.5,3119.1,0.02387378]
[1642601054622,1.0104122,3119.5,3118.9,0.02501063]
[1642601055022,4.61481813,3119.5,3118.9,0.02501063]
[1642601055426,5.41663813,3119.5,3118.8,0.02557905]
[1642601055623,0.80183,3119.3,3118.8,0.02557905]
[1642601056024,1.6036427,3119.3,3118.8,0.02557905]
[1642601056429,3.80398454,3119.2,3118.8,0.02557905]
[1642601056625,3.80398454,3119.2,3118.4,0.02785275]
[1642601056828,3.80398454,3119.2,3118.2,1.5924]
[1642601056829,3.67578454,3119.2,3118.5,2.72790336]
[1642601057028,1.6037502,3119.1,3118.4,2.72790336]
[1642601057230,1.6037502,3119.1,3118.6,2.75461926]
[1642601057430,1.7319502,3119.1,3118.5,0.02728432]
[1642601057673,3.5197228,3119.0,3118.7,0.02614748]
[1642601057879,4.3216328,3119.0,3118.3,0.02842117]
[1642601058081,0.80191,3119.0,3118.4,2.72799961]
[1642601058279,3.1119797,3118.9,3118.4,2.72799961]
[1642601058480,3.1119797,3118.9,3118.2,1.1324]
[1642601058481,0.1282,3118.8,3118.2,1.1324]
[1642601058678,0.1282,3118.8,3118.0,3.1945]
[1642601058880,0.1282,3118.8,3118.3,0.02842117]
[1642601059078,0.93025,3118.8,3118.3,0.02842117]
[1642601059278,0.93025,3118.8,3118.2,0.02898959]
[1642601059481,0.80211,3118.7,3118.1,0.02955802]
[1642601059678,0.1282,3118.6,3118.1,0.02955802]
[1642601059876,0.1282,3118.6,3118.0,0.03012644]
[1642601060078,0.1282,3118.6,3118.1,2.72820573]
[1642601060278,0.1282,3118.6,3118.0,0.03012644]
[1642601060478,0.1282,3118.6,3117.8,1.40894147]
[1642601060684,0.00170527,3118.5,3117.9,2.72996215]
[1642601061078,0.1282,3118.6,3118.0,0.00113685]
[1642601061079,0.00113684,3118.4,3118.0,0.00113685]
[1642601061736,0.00113684,3118.4,3117.6,2.73163882]
[1642601061944,1.56211488,3118.3,3117.6,0.00341055]
[1642601062137,1.56211488,3118.3,3117.3,3.7209]
[1642601062138,1.56211488,3118.3,3117.7,0.00284212]
[1642601062339,0.80207,3118.2,3117.5,0.00397897]
[1642601062540,0.1282,3118.1,3117.4,0.00454739]
[1642601062744,1.64686987,3118.1,3117.4,0.00454739]
[1642601062945,0.8023,3117.9,3117.4,0.00454739]
[1642601063144,0.1283,3117.8,3117.4,0.00454739]
[1642601063544,0.9306,3117.9,3117.4,0.00454739]
[1642601063744,0.9306,3117.9,3117.3,0.00511582]
[1642601064244,0.80223,3117.7,3117.2,1.40689133]
[1642601064644,0.80223,3117.7,3117.3,0.00511582]
[1642601065044,0.1283,3117.6,3117.3,0.00511582]
[1642601065306,0.80233,3117.3,3116.7,0.00852636]
[1642601065604,0.8023849,3117.2,3116.6,0.00909478]
[1642601065808,0.8023849,3117.2,3116.6,1.23673912]
[1642601066113,0.01256631,3116.9,3116.7,0.00852636]
[1642601066309,1.60521,3116.8,3116.7,0.00852636]
[1642601066507,1.60521,3116.8,3116.6,0.00909478]
[1642601066706,0.1283,3116.8,3116.6,0.00909478]
[1642601066907,1.6051856,3116.9,3116.6,0.00909478]
[1642601067107,1.6051856,3116.9,3116.6,1.47367149]
[1642601067308,0.8026156,3116.9,3116.6,1.47367149]
[1642601067509,0.1283,3117.6,3116.7,0.00852636]
[1642601067705,7.2039948,3117.5,3116.7,0.00852636]
[1642601067907,0.8023,3117.4,3116.7,7.45852636]
[1642601068107,0.9306,3117.4,3116.7,7.45852636]
[1642601068307,0.9306,3117.4,3116.8,0.00795793]
[1642601068510,0.9306,3117.4,3116.8,1.46412144]
[1642601068711,0.9306,3117.4,3116.8,1.45616351]
[1642601068923,0.80236,3117.3,3116.9,0.00738951]
[1642601069326,0.1283,3117.4,3116.9,0.00738951]
[1642601069527,6.4017,3117.3,3116.9,1.25022428]
[1642601069728,6.4017,3117.3,3116.9,0.00738951]
[1642601069929,6.4017,3117.3,3117.0,0.00682109]
[1642601070128,6.4017,3117.3,3117.1,0.03197696]
[1642601070527,6.4017,3117.3,3117.2,0.00568424]
[1642601073675,10.04725474,3117.3,3117.2,0.00568424]
[1642601074381,1.4049795,3117.0,3116.5,0.00416012]
[1642601074577,2.2075595,3117.0,3116.5,0.00416012]
[1642601074776,1.60506,3117.2,3116.6,0.00341054]
[1642601074777,6.4017,3116.9,3116.6,0.00341054]
[1642601075477,0.80254,3116.8,3116.6,0.00341054]
[1642601076426,6.4017,3116.9,3116.6,0.00341054]
[1642601077233,0.1283,3116.8,3116.6,0.00341054]
[1642601077632,3.40259,3116.7,3116.6,0.00341054]
[1642601077834,2.7283,3116.7,3116.6,0.00341054]
[1642601078133,2.6,3116.7,3116.6,0.00341054]
[1642601078436,6.65906926,3116.7,3116.6,0.00341054]
[1642601078633,9.75906926,3116.7,3116.6,0.00341054]
[1642601078834,13.06076926,3116.7,3116.6,0.00341054]
[1642601079435,9.43,3116.7,3116.6,0.00341054]
[1642601079636,10.321,3116.7,3116.6,0.00341054]
[1642601079836,14.12891294,3116.7,3116.6,0.00341054]
[1642601080036,8.00542,3116.6,3116.3,5.176e-05]
[1642601080276,8.13372,3116.6,3116.3,5.176e-05]
[1642601080574,3.93978353,3116.5,3116.4,0.00113685]
[1642601080775,6.4,3116.4,3116.3,5.176e-05]
[1642601080974,10.67257803,3116.4,3116.3,5.176e-05]
[1642601081172,16.94597803,3116.4,3116.3,5.176e-05]
[1642601081972,17.07427803,3116.4,3116.3,5.176e-05]
[1642601082375,6.4,3116.3,3114.9,0.46]
[1642601082576,6.4,3116.3,3115.0,1.219151]
[1642601082577,0.80289,3115.7,3115.0,1.219151]
[1642601082778,0.80289,3115.7,3115.1,0.0073895]
[1642601082779,3.69871411,3115.6,3115.1,0.0073895]
[1642601082977,0.1283,3115.7,3115.1,0.0073895]
[1642601084135,1.6057,3115.6,3115.1,0.0073895]
[1642601084339,1.60588,3115.5,3115.1,0.0073895]
[1642601084537,0.1283,3115.4,3115.1,0.0073895]
[1642601084934,6.4017,3115.3,3115.1,0.0073895]
[1642601085335,6.4017,3115.3,3115.1,1.43725555]
[1642601085538,2.03210112,3115.3,3115.1,0.0073895]
[1642601085735,2.03210112,3115.3,3115.2,0.00682108]
[1642601086035,2.33210112,3115.3,3115.2,0.00682108]
[1642601086435,2.16040112,3115.3,3115.2,0.00682108]
[1642601086635,3.26332112,3115.3,3115.2,0.00682108]
[1642601087236,2.96332112,3115.3,3115.2,0.00682108]
[1642601087437,2.03210112,3115.3,3115.2,0.00682108]
[1642601088685,2.33210112,3115.3,3115.2,0.00682108]
[1642601089487,5.83210112,3115.3,3115.2,0.00682108]
[1642601089689,2.33210112,3115.3,3115.2,0.00682108]
[1642601090585,6.75939,3115.2,3115.0,1.219151]
[1642601090987,0.1283,3115.1,3115.0,1.219151]
[1642601091285,0.1283,3115.1,3115.0,1.22028785]
[1642601091286,2.16040112,3115.1,3115.0,1.22028785]
[1642601092333,2.03210112,3115.1,3115.0,1.22028785]
[1642601093436,2.03210112,3115.1,3115.0,1.68028785]
[1642601095480,2.03210112,3115.1,3115.0,1.22028785]
[1642601098184,5.86902259,3115.1,3115.0,1.22028785]
[1642601098586,2.03210112,3115.1,3115.0,1.22028785]
[1642601098787,6.10200813,3115.1,3115.0,1.22028785]
[1642601099023,4.6032,3115.0,3113.9,3.0285]
[1642601099222,1.18339064,3114.7,3114.0,2.71180177]
[1642601099430,3.79899144,3114.6,3114.0,2.667486]
[1642601099727,0.9315,3114.5,3114.0,0.00568423]
[1642601100124,0.9315,3114.5,3114.0,1.17714562]
[1642601100325,0.80321,3114.4,3114.0,1.17714562]
[1642601100525,0.1283,3114.5,3114.1,0.00511581]
[1642601100723,1.60634,3114.6,3114.1,0.00511581]
[1642601100924,2.20634,3114.6,3114.1,0.00511581]
[1642601101124,2.20634,3114.6,3113.7,1.30548167]
[1642601101328,2.20634,3114.6,3113.8,0.00682108]
[1642601101329,1.60634,3114.6,3113.8,0.00682108]
[1642601101726,2.20634,3114.6,3114.1,1.35487938]
[1642601102026,2.20634,3114.6,3114.2,0.00454738]
[1642601102530,0.80314,3114.4,3114.2,0.00454738]
[1642601102781,0.80314,3114.3,3114.2,0.00454738]
[1642601103981,2.83524112,3114.3,3114.2,0.00454738]
[1642601104983,2.83524112,3114.3,3113.8,0.00682108]
[1642601105988,2.83524112,3114.3,3114.0,1.19081161]
[1642601106183,2.83524112,3114.3,3113.8,0.00682108]
[1642601106431,2.83524112,3114.3,3114.1,0.00511581]
[1642601106625,2.83524112,3114.3,3113.7,0.46]
[1642601106626,2.83524112,3114.3,3113.8,0.00682108]
[1642601107027,2.03210112,3114.3,3113.8,0.00682108]
[1642601107835,2.03210112,3114.3,3113.8,1.21322471]
[1642601108033,2.83528112,3114.3,3113.8,0.00682108]
[1642601108231,2.83528112,3114.3,3113.9,0.00625265]
[1642601108434,2.83528112,3114.3,3113.8,0.00682108]
[1642601108633,2.03210112,3114.3,3113.8,0.00682108]
[1642601109233,2.83526112,3114.3,3113.8,0.00682108]
[1642601109634,0.80315,3114.2,3113.8,0.00682108]
[1642601110034,2.16040112,3114.3,3113.8,0.00682108]
[1642601110276,2.46040112,3114.3,3113.8,0.00682108]
[1642601110481,2.33210112,3114.3,3113.8,0.00682108]
[1642601110677,2.03210112,3114.3,3113.8,0.00682108]
[1642601111284,2.83534112,3114.3,3113.8,0.00682108]
[1642601112081,0.80315,3114.2,3113.8,0.00682108]
[1642601113484,1.10315,3114.2,3113.8,0.00682108]
[1642601113685,4.57321742,3114.2,3113.8,0.00682108]
[1642601113938,4.57321742,3114.2,3112.5,0.1283]
[1642601113939,6.4,3114.0,3112.5,0.1283]
[1642601114135,6.4,3114.0,3112.4,0.46]
[1642601114136,0.80356,3113.5,3112.4,0.46]
[1642601114430,0.80356,3113.5,3112.3,4.2219]
[1642601114431,2.16040112,3113.4,3112.3,4.2219]
[1642601114630,2.46040112,3113.4,3112.3,4.2219]
[1642601114829,2.30119979,3113.3,3112.4,0.00795793]
[1642601115030,2.16040112,3113.2,3112.4,0.00795793]
[1642601115228,0.80354,3112.9,3112.4,0.00795793]
[1642601116030,0.80354,3112.9,3112.1,5.53758591]
[1642601116031,0.80354,3112.9,3112.2,0.00909477]
[1642601116431,0.80355,3112.7,3112.2,0.00909477]
[1642601116733,0.80355,3112.7,3112.1,0.0096632]
[1642601116936,0.1285,3113.0,3112.1,0.0096632]
[1642601117133,0.1285,3113.1,3112.1,0.0096632]
[1642601117335,2.16060112,3113.2,3112.2,0.0129829]
[1642601117677,0.80344,3113.1,3112.3,0.0076026]
[1642601118079,0.80344,3113.1,3112.6,1.42388418]
[1642601118284,0.80344,3113.1,3112.9,1.1253056]
[1642601118480,0.80344,3113.1,3112.7,0.00532891]
[1642601118481,3.64025625,3113.0,3112.7,0.00532891]
[1642601118683,0.93187,3112.9,3112.0,1.3034946]
[1642601118883,0.80357,3112.9,3112.0,0.5]
[1642601119483,0.80357,3112.9,3112.8,1.1608304]
[1642601119686,2.03210112,3112.9,3112.8,1.1608304]
[1642601119884,2.03210112,3112.9,3112.8,3.35588154]
[1642601121631,0.1283,3113.8,3112.9,0.58229617]
[1642601122029,0.80337,3113.4,3113.0,0.00362363]
[1642601122229,0.12922375,3113.8,3113.0,0.00362363]
[1642601122230,0.1283,3113.3,3113.0,0.00362363]
[1642601122430,0.1283,3113.7,3113.0,0.00362363]
[1642601122631,6.4239,3113.6,3113.3,1.19021747]
[1642601122833,8.00691,3113.4,3113.0,0.00362363]
[1642601123033,8.00691,3113.4,3112.9,0.58229617]
[1642601123034,0.1283,3113.3,3112.9,0.58229617]
[1642601123436,0.80351,3113.2,3112.9,0.58229617]
[1642601123633,0.1283,3113.1,3112.9,0.58229617]
[1642601123834,0.93179,3113.1,3112.9,0.58229617]
[1642601124033,0.3,3113.1,3112.9,0.58229617]
[1642601124234,0.3,3113.1,3113.0,2.0341321]
[1642601124435,0.3,3113.1,3112.9,2.97036547]
[1642601124635,0.1283,3113.3,3112.9,2.97036547]
[1642601124636,6.4239,3113.6,3113.0,2.03473037]
[1642601124838,6.4239,3113.6,3113.1,2.83797025]
[1642601125040,6.4239,3113.6,3113.2,5.50767201]
[1642601125282,6.4239,3113.6,3113.3,2.49464133]
[1642601125484,6.4239,3113.6,3113.4,3.90703553]
[1642601125687,6.4239,3113.6,3113.4,1.87310633]
[1642601127284,6.4239,3113.6,3113.5,2.03625303]
[1642601127485,6.4239,3113.6,3113.5,1.51453675]
[1642601127685,6.4239,3113.6,3113.5,3.55096983]
[1642601127886,6.4239,3113.6,3113.4,2.67628323]
[1642601127887,6.4239,3113.6,3113.4,0.00134994]
[1642601128387,6.4239,3113.6,3113.5,1.3717]
[1642601132334,6.4239,3113.6,3113.2,1.51828866]
[1642601132532,6.4239,3113.6,3113.3,2.04237438]
[1642601132533,0.80336,3113.5,3113.3,2.04237438]
[1642601132782,0.80336,3113.5,3113.3,0.00191836]
[1642601132983,0.80336,3113.5,3113.4,0.00134994]
[1642601133182,0.80336,3113.5,3113.3,0.00191836]
[1642601133384,0.93166,3113.5,3113.3,0.00191836]
[1642601133684,0.93166,3113.5,3113.2,0.00248679]
[1642601133887,6.4239,3113.6,3113.2,0.80584929]
[1642601133888,6.5522,3113.6,3113.2,0.80584929]
[1642601134083,6.4239,3113.6,3113.2,2.25743645]
[1642601134283,6.4239,3113.6,3113.3,0.00191836]
[1642601134483,6.4239,3113.6,3113.3,1.60843426]
[1642601134684,6.4239,3113.6,3113.3,3.65196718]
[1642601134883,6.4239,3113.6,3113.4,0.00134994]
[1642601135084,6.4239,3113.6,3113.4,2.04483188]
[1642601135283,6.4239,3113.6,3113.4,0.00134994]
[1642601136724,7.22722,3113.6,3113.4,0.00134994]
[1642601136926,7.22722,3113.6,3113.3,1.55786584]
[1642601137729,7.22722,3113.6,3113.2,0.8033625]
[1642601137730,8.03059,3113.6,3113.2,0.8033625]
[1642601137930,8.03059,3113.6,3113.0,1.2634204]
[1642601137931,8.15889,3113.6,3113.0,1.2634204]
[1642601138130,0.80342,3113.4,3113.1,2.04473891]
[1642601138333,6.5522,3113.6,3113.1,2.04644418]
[1642601138531,6.4239,3113.6,3113.1,2.04644418]
[1642601138730,6.4239,3113.6,3113.1,3.65306498]
[1642601138931,6.4239,3113.6,3113.2,2.04473891]
[1642601139136,6.4239,3113.6,3113.3,0.8033376]
[1642601139330,7.22721,3113.6,3113.4,2.04473891]
[1642601140276,7.22721,3113.6,3113.1,0.80502497]
[1642601140476,6.4239,3113.6,3113.2,2.0375598]
[1642601141282,6.4239,3113.6,3113.1,0.00170527]
[1642601142278,6.4239,3113.6,3113.2,0.46]
[1642601142482,6.4239,3113.6,3113.3,0.1283]
[1642601142679,7.504,3114.5,3113.5,0.01296152]
[1642601142884,7.504,3114.5,3113.9,1.31947245]
[1642601143081,7.504,3114.5,3114.0,0.46]
[1642601143082,0.00419206,3114.3,3114.0,0.46]
[1642601143383,0.00362364,3114.2,3114.0,2.62187927]
[1642601143782,0.00305521,3114.1,3114.0,7.47187927]
[1642601144627,0.00305521,3114.1,3114.0,3.42480517]
[1642601145128,0.00305521,3114.1,3114.0,3.37480517]
[1642601145927,0.00305521,3114.1,3114.0,6.67480517]
[1642601146528,0.00305521,3114.1,3114.0,1.81896927]
[1642601147790,0.00305521,3114.1,3114.0,3.1171605]
[1642601148191,0.00305521,3114.1,3114.0,3.9200992]
[1642601148791,0.00305521,3114.1,3114.0,0.46]
[1642601149890,0.00305521,3114.1,3114.0,1.57418094]
[1642601150490,0.00305521,3114.1,3114.0,0.46]
[1642601150693,0.00305521,3114.1,3114.0,1.77823099]
[1642601150891,0.00305521,3114.1,3114.0,0.46]
[1642601151093,6.70097,3114.5,3114.1,1.60284999]
[1642601151293,3.03898838,3115.5,3114.2,0.46]
[1642601151294,0.1283,3114.4,3114.2,0.46]
[1642601151526,0.00170527,3114.4,3114.3,1.14544683]
[1642601151728,0.00170527,3114.4,3114.3,1.60544683]
[1642601152134,0.1283,3115.1,3114.4,6.0]
[1642601152434,0.1283,3115.3,3115.1,1.18661705]
[1642601152632,11.17788,3115.7,3115.1,1.18661705]
[1642601152633,0.1283,3115.6,3115.1,1.18661705]
[1642601152830,0.00511581,3115.3,3115.1,1.18661705]
[1642601153032,0.1283,3115.2,3115.1,1.18661705]
[1642601153233,0.13284739,3115.2,3115.1,1.18661705]
[1642601153432,0.00454739,3115.2,3115.1,1.18661705]
[1642601153633,0.13284739,3115.2,3115.1,1.18661705]
[1642601154442,0.13284739,3115.2,3115.1,4.3630765]
[1642601154635,0.00454739,3115.2,3115.1,1.18661705]
[1642601155488,0.00454739,3115.2,3115.1,1.64661705]
[1642601155690,3.05454739,3115.2,3115.1,0.46]
[1642601156291,0.00454739,3115.2,3115.1,0.46]
[1642601157394,0.00454739,3115.2,3115.1,1.90270008]
[1642601157693,0.00454739,3115.2,3115.1,4.45270008]
[1642601158093,0.00454739,3115.2,3115.1,5.88706094]
[1642601158694,0.00454739,3115.2,3115.1,9.34939386]
[1642601159445,0.00454739,3115.2,3115.1,6.79939386]
[1642601161650,0.00454739,3115.2,3115.1,19.11160047]
[1642601161847,0.00454739,3115.2,3115.1,19.23990047]
[1642601162053,0.1283,3116.5,3115.5,1.6051179]
[1642601162353,0.58667219,3116.4,3116.3,1.1644936]
[1642601162549,3.03667219,3116.4,3116.3,1.1644936]
[1642601162787,0.58667219,3116.4,3116.3,1.1644936]
[1642601163391,0.00682108,3116.4,3116.3,2.7270536]
[1642601163587,0.00682108,3116.4,3116.3,2.4270536]
[1642601163887,0.00682108,3116.4,3116.3,2.7270536]
[1642601164089,0.00682108,3116.4,3116.3,2.4270536]
[1642601164688,0.00682108,3116.4,3116.3,5.8770536]
[1642601165089,0.00682108,3116.4,3116.3,9.61199238]
[1642601165690,0.00682108,3116.4,3116.3,6.46199238]
[1642601166292,0.00682108,3116.4,3116.3,2.7270536]
[1642601166938,0.00682108,3116.4,3116.3,1.26256]
[1642601167140,0.00682108,3116.4,3116.1,1.60508]
[1642601167141,0.69118171,3116.4,3116.1,1.60508]
[1642601167337,0.13512108,3116.4,3116.1,1.60508]
[1642601167541,0.00625266,3116.3,3116.1,1.60508]
[1642601167735,0.1283,3116.2,3116.1,1.60508]
[1642601167938,0.13398424,3116.2,3116.1,1.60508]
[1642601168135,0.00568424,3116.2,3115.9,1.39770738]
[1642601168338,0.8027,3116.1,3115.9,1.39770738]
[1642601168536,0.00511581,3116.1,3115.9,1.39770738]
[1642601168736,0.00454739,3116.0,3115.9,1.39770738]
[1642601169738,0.00454739,3116.0,3115.9,1.85770738]
[1642601171187,6.7,3116.3,3115.9,1.85770738]
[1642601171388,6.7,3116.3,3116.0,0.80242]
[1642601171587,0.00113685,3116.2,3116.1,1.10243]
[1642601171787,6.7,3116.3,3116.1,1.10243]
[1642601172587,6.7,3116.3,3116.1,1.9048813]
[1642601175438,6.7,3116.3,3116.1,1.6048813]
[1642601175639,6.7,3116.3,3116.2,0.3]
[1642601175834,6.7,3116.3,3116.1,1.6048813]
[1642601177436,6.7,3116.3,3116.1,4.81307772]
[1642601178088,6.7,3116.3,3116.1,1.6048813]
[1642601178283,6.7,3116.3,3116.1,4.7644307]
[1642601178485,6.7,3116.3,3116.1,1.6048813]
[1642601178984,6.7,3116.3,3116.2,0.3]
[1642601179785,6.7,3116.3,3116.2,3.55978085]
[1642601179989,0.2817808,3116.3,3116.2,10.36978085]
[1642601180186,1.58183498,3117.9,3116.4,0.8022904]
[1642601180187,0.1283,3117.5,3116.4,0.8022904]
[1642601180386,1.1469,3117.9,3116.6,0.80228]
[1642601180387,0.51508715,3117.4,3116.6,0.80228]
[1642601180591,0.00568423,3117.2,3116.7,4.15431465]
[1642601180786,0.00568423,3117.2,3116.7,0.46]
[1642601180986,0.00511581,3117.1,3116.8,3.22527396]
[1642601181187,0.00511581,3117.1,3117.0,1.24696618]
[1642601181431,0.1283,3117.7,3117.2,0.80228]
[1642601181633,1.31750659,3117.6,3117.3,0.3]
[1642601181835,0.64351659,3117.5,3117.3,0.3]
[1642601182033,0.00795792,3117.6,3117.3,0.3]
[1642601182232,0.00682108,3117.4,3117.3,3.50381613]
[1642601182432,0.0073895,3117.5,3117.3,0.3]
[1642601182632,0.00682108,3117.4,3117.3,0.3]
[1642601182834,0.00682108,3117.4,3117.2,0.80228]
[1642601183145,0.1283,3117.7,3117.2,0.80228]
[1642601183146,0.00725265,3117.3,3117.2,0.80228]
[1642601183335,0.00725265,3117.3,3117.2,1.10228]
[1642601184035,0.52238973,3117.3,3117.2,1.10228]
[1642601184637,0.52238973,3117.3,3117.2,0.80228]
[1642601186891,0.52238973,3117.3,3117.1,1.60454]
[1642601187092,0.51513708,3117.2,3117.1,1.60454]
[1642601187291,0.52082131,3117.2,3117.1,1.90454]
[1642601187492,0.00568423,3117.2,3117.1,1.90454]
[1642601188393,0.00568423,3117.2,3117.1,10.75611276]
[1642601188594,0.00568423,3117.2,3117.1,8.09284]
[1642601189035,0.001,3117.3,3117.1,8.09284]
[1642601189537,0.51499828,3117.7,3117.3,5.25208]
[1642601189735,0.51499828,3117.7,3117.5,0.8020722]
[1642601189937,0.00227369,3117.6,3117.5,0.3]
[1642601190134,0.00227369,3117.6,3117.5,0.76]
[1642601190336,0.00227369,3117.6,3117.5,0.46]
[1642601192998,0.51727197,3117.6,3117.5,0.46]
[1642601195300,4.16727197,3117.6,3117.5,0.46]
[1642601195499,0.51727197,3117.6,3117.5,0.46]
[1642601195699,0.51727197,3117.6,3117.5,0.76]
[1642601197745,0.51727197,3117.6,3117.3,0.80208]
[1642601197746,0.64557197,3117.6,3117.3,0.80208]
[1642601197943,0.51499828,3117.5,3117.2,0.93064]
[1642601198143,0.51499828,3117.4,3117.2,0.93064]
[1642601198346,0.51613513,3117.4,3117.2,0.1283]
[1642601198543,0.51499828,3117.3,3117.2,0.1283]
[1642601200989,0.51499828,3117.3,3117.1,0.8023]
[1642601201189,0.51499828,3117.2,3117.1,0.8023]
[1642601202589,0.51499828,3117.2,3117.0,1.60462]
[1642601202791,0.64329828,3117.1,3117.0,1.60462]
[1642601203089,0.51499828,3117.1,3117.0,1.60575685]
[1642601207142,0.51499828,3117.1,3117.0,4.45575685]
[1642601207344,0.51499828,3117.1,3117.0,4.75575685]
[1642601207543,0.51499828,3117.1,3117.0,5.96254639]
[1642601207792,0.51499828,3117.1,3117.0,5.66254639]
[1642601208994,0.51499828,3117.1,3117.0,2.81254639]
[1642601210694,0.51499828,3117.1,3117.0,1.60575685]
[1642601211096,3.16499828,3117.1,3117.0,1.60575685]
[1642601211540,0.51499828,3117.1,3117.0,1.60575685]
[1642601211736,0.51499828,3117.1,3117.0,2.72673346]
[1642601213138,0.51499828,3117.1,3117.0,6.00701261]
[1642601213339,0.51499828,3117.1,3117.0,6.20764938]
[1642601214043,0.00113685,3117.4,3117.0,6.20764938]
[1642601214942,1.63398183,3117.7,3117.0,6.20764938]
[1642601215192,1.65647498,3117.7,3117.2,0.80225]
[1642601215488,0.00113684,3117.6,3117.2,0.80225]
[1642601217490,2.17135333,3117.8,3117.2,0.80225]
[1642601217690,0.1283,3117.7,3117.2,0.80225]
[1642601217892,0.1283,3117.7,3117.3,0.00170527]
[1642601218093,0.1283,3117.7,3117.5,1.28927706]
[1642601218492,1.97968333,3117.8,3117.5,1.28927706]
[1642601218696,3.17161376,3118.2,3117.5,1.28927706]
[1642601218697,2.35746377,3118.3,3117.6,3.76896678]
[1642601218942,2.35746377,3118.4,3117.6,3.76896678]
[1642601219143,0.00113685,3117.8,3117.6,3.76896678]
[1642601219344,2.35746377,3118.4,3118.3,1.49269182]
[1642601219542,2.35746377,3118.5,3118.3,0.6070378]
[1642601220141,2.35746377,3118.4,3118.3,0.6070378]
[1642601221247,3.17616115,3118.6,3118.3,0.6070378]
[1642601221646,0.00397897,3118.5,3118.2,0.802]
[1642601221849,0.13217897,3118.5,3118.2,0.802]
[1642601222045,2.38716047,3118.3,3118.2,0.802]
[1642601222547,0.00284212,3118.3,3118.1,3.04805545]
[1642601222791,2.38935349,3118.3,3118.1,3.04805545]
[1642601222992,0.0022737,3118.2,3118.1,3.04805545]
[1642601223391,0.0022737,3118.2,3118.1,4.34392227]
[1642601223591,0.0022737,3118.2,3118.1,2.73992227]
[1642601227940,1.59474685,3118.2,3118.1,5.91569306]
[1642601228141,0.0022737,3118.2,3118.1,6.37569306]
[1642601228341,0.0022737,3118.2,3118.1,6.67569306]
[1642601228544,0.0022737,3118.2,3118.1,6.80389306]
[1642601228841,1.59247315,3118.7,3118.4,0.80182]
[1642601229043,1.59247315,3118.7,3118.6,1.22314882]
[1642601229244,1.59247315,3118.8,3118.6,4.93530743]
[1642601229443,1.59247315,3118.8,3118.6,1.68314882]
[1642601229746,1.59645211,3118.9,3118.7,3.1513934]
[1642601229943,1.59645211,3118.9,3118.7,0.46]
[1642601230198,0.00341054,3118.8,3118.7,3.6117212]
[1642601230388,0.00341054,3118.8,3118.7,0.46]
[1642601230995,0.00341054,3118.8,3118.7,3.68193917]
[1642601231293,0.00341054,3118.8,3118.7,5.58559917]
[1642601231694,0.00341054,3118.8,3118.7,2.36366]
[1642601231893,0.00341054,3118.8,3118.7,2.06366]
[1642601232299,1.59588369,3118.8,3118.7,2.06366]
[1642601232495,0.00341054,3118.8,3118.7,2.06366]
[1642601232895,7.29588369,3118.8,3118.7,2.06366]
[1642601233096,5.70341054,3118.8,3118.4,0.80204]
[1642601233294,1.59166327,3118.7,3118.4,0.80204]
[1642601233496,1.59166327,3118.6,3118.4,0.80204]
[1642601233696,1.59293984,3118.6,3118.4,0.80204]
[1642601233949,0.00170527,3118.5,3118.2,1.60402]
[1642601234151,1.58990679,3118.3,3118.2,1.60402]
[1642601234551,1.91797857,3118.4,3118.2,1.60501712]
[1642601234751,1.78977857,3118.3,3118.2,0.6814553]
[1642601235155,1.78977857,3118.3,3118.2,0.00099712]
[1642601235354,0.19987178,3118.3,3118.2,0.00099712]
[1642601235553,0.19987178,3118.3,3118.1,0.00156555]
[1642601235554,1.58962229,3118.3,3118.1,0.00156555]
[1642601235755,1.78949407,3118.3,3118.1,0.00156555]
[1642601235955,2.74987178,3118.2,3118.1,0.00156555]
[1642601237257,4.37138407,3118.2,3118.1,0.00156555]
[1642601237462,5.17353407,3118.2,3118.1,0.00156555]
[1642601238303,5.17353407,3118.2,3118.0,0.00213397]
[1642601238506,3.04987178,3118.1,3118.0,0.00213397]
[1642601240506,4.63854303,3118.1,3118.0,0.00213397]
[1642601240704,8.18854303,3118.1,3118.0,0.00213397]
[1642601240904,6.59987178,3118.1,3118.0,0.00213397]
[1642601241439,0.80225,3118.0,3117.6,0.00440767]
[1642601241640,0.19987178,3117.9,3117.6,0.00440767]
[1642601241841,0.19987178,3117.8,3117.6,0.00440767]
[1642601242042,4.99987178,3117.7,3117.6,0.00440767]
[1642601243044,0.19987178,3117.7,3117.6,0.00440767]
[1642601243745,3.49987178,3117.7,3117.6,0.00440767]
[1642601245692,0.19987178,3117.7,3117.6,0.00440767]
[1642601246695,4.14987178,3117.7,3117.6,0.00440767]
[1642601247295,4.95215178,3117.7,3117.6,0.00440767]
[1642601247695,4.14987178,3117.7,3117.6,0.00440767]
[1642601247903,0.19987178,3117.7,3117.6,0.00440767]
[1642601248698,3.14987178,3117.7,3117.6,0.00440767]
[1642601251544,3.14987178,3117.7,3117.5,0.00497609]
[1642601251746,0.19987178,3117.6,3117.5,0.00497609]
[1642601252547,4.54987178,3117.6,3117.5,0.00497609]
[1642601254496,0.19987178,3117.6,3117.5,0.00497609]
[1642601255600,0.19987178,3117.6,3117.5,1.86219992]
[1642601255904,0.19987178,3117.6,3117.5,5.4663518]
[1642601256097,0.19987178,3117.6,3117.5,2.32219992]
[1642601256547,0.19987178,3117.6,3117.5,5.44700559]
[1642601256747,1.58867125,3118.1,3117.5,6.75116559]
[1642601256949,1.58867125,3118.1,3118.0,1.22189205]
[1642601257149,1.58867125,3118.3,3117.6,0.00440767]
[1642601257348,1.58867125,3118.3,3118.0,0.00213397]
[1642601257549,1.58867125,3118.2,3117.6,0.00440767]
[1642601257750,2.38651137,3118.5,3117.6,0.00440767]
[1642601257751,1.58867125,3118.1,3117.9,1.60406]
[1642601257951,1.58867125,3118.2,3117.9,1.60406]
[1642601258152,1.58867125,3118.2,3118.0,0.00213397]
[1642601259553,1.58867125,3118.3,3118.0,0.00213397]
[1642601260395,1.58867125,3118.4,3118.0,0.00213397]
[1642601260793,1.58867125,3118.4,3118.0,0.30213397]
[1642601260997,1.58867125,3118.2,3118.0,0.30213397]
[1642601261200,1.58867125,3118.3,3118.1,0.00156555]
[1642601261396,1.58867125,3118.3,3118.1,1.60563455]
[1642601261597,1.58867125,3118.3,3118.1,0.80360555]
[1642601261799,1.58867125,3118.3,3118.2,0.30099712]
[1642601261997,0.80211,3118.4,3118.2,0.30099712]
[1642601261998,3.18862137,3118.4,3118.2,0.30099712]
[1642601262198,0.80211,3118.4,3118.2,0.13666337]